bitfinex-derivatives/quotes_ETHF0:USTF0_20250405
["timestamp","ask_amount","ask_price","bid_price","bid_amount"]
[1743884005186,0.78418,1786.0,1785.8,1.5093]
[1743884005385,0.78418,1786.0,1785.9,1.1808]
[1743884005577,0.78418,1786.0,1785.9,2.419]
[1743884006684,6.61495,1786.1,1785.9,2.419]
[1743884007283,6.61495,1786.1,1785.9,3.9203]
[1743884007478,0.78417,1786.0,1785.9,3.9203]
[1743884007678,1.4681,1786.0,1785.9,3.9203]
[1743884009387,2.25227,1786.0,1785.9,3.9203]
[1743884010180,1.4681,1786.0,1785.9,3.9203]
[1743884010389,1.4681,1786.0,1785.9,4.70451]
[1743884010579,3.2078,1786.1,1786.0,0.78417]
[1743884010780,3.2078,1786.1,1786.0,5.86197]
[1743884010983,3.2078,1786.1,1786.0,5.0778]
[1743884012383,4.6643,1786.1,1786.0,5.0778]
[1743884014083,4.6643,1786.1,1786.0,5.86197]
[1743884014288,4.6643,1786.1,1786.0,5.0778]
[1743884015382,4.6643,1786.1,1786.0,5.86197]
[1743884015587,3.2078,1786.1,1786.0,5.86197]
[1743884021191,4.7333,1786.1,1786.0,5.86197]
[1743884023286,4.7333,1786.1,1786.0,3.545]
[1743884023485,7.0897,1786.1,1786.0,3.545]
[1743884023978,7.87382,1786.1,1786.0,3.545]
[1743884025089,7.87382,1786.1,1785.8,39.28003]
[1743884025293,1.5033,1786.0,1785.9,3.544]
[1743884027297,1.5033,1786.0,1785.8,36.07223]
[1743884027498,1.5033,1786.0,1785.9,3.544]
[1743884028101,1.5033,1786.0,1785.9,4.32821]
[1743884028298,3.2078,1786.1,1785.9,5.52081]
[1743884028494,4.6626,1786.1,1785.9,7.01641]
[1743884028697,4.6626,1786.1,1786.0,1.2008]
[1743884031213,4.6626,1786.1,1786.0,1.98497]
[1743884031604,4.6626,1786.1,1786.0,3.50607]
[1743884031798,3.2078,1786.1,1786.0,3.50607]
[1743884033300,5.49465,1786.3,1786.1,0.78411]
[1743884033501,5.49465,1786.3,1786.2,3.544]
[1743884034098,2.28685,1786.3,1786.2,3.544]
[1743884034309,5.49465,1786.3,1786.2,3.544]
[1743884035707,2.28685,1786.3,1786.2,3.544]
[1743884035908,5.49465,1786.3,1786.2,3.544]
[1743884041713,5.49465,1786.3,1786.2,4.28935076]
[1743884042706,5.49465,1786.3,1786.2,4.28931881]
[1743884043207,5.49464,1786.3,1786.2,4.28931881]
[1743884043905,4.7106,1786.3,1786.2,4.28931881]
[1743884044205,4.7106,1786.3,1786.2,5.79391881]
[1743884045317,5.49464,1786.3,1786.2,5.79391881]
[1743884046320,5.49464,1786.3,1786.2,5.79386973]
[1743884046818,5.49464,1786.3,1786.2,4.28926973]
[1743884047316,2.28684,1786.3,1786.2,4.28926973]
[1743884047615,5.49464,1786.3,1786.2,4.28926973]
[1743884048218,5.49464,1786.3,1786.2,4.28925818]
[1743884048514,5.49464,1786.3,1786.2,0.74525818]
[1743884048719,5.49464,1786.3,1786.2,4.28925818]
[1743884048919,5.49464,1786.3,1786.2,0.74525818]
[1743884055514,2.28684,1786.3,1786.2,0.74525818]
[1743884055712,5.49464,1786.3,1786.2,0.74528798]
[1743884056615,5.49464,1786.3,1786.0,4.6895]
[1743884056919,3.48912,1786.2,1786.1,0.74533797]
[1743884064919,3.48912,1786.2,1786.1,0.74552307]
[1743884067924,2.705,1786.2,1786.1,0.74552307]
[1743884068124,1.4545,1786.2,1786.1,0.74552307]
[1743884068323,1.4545,1786.2,1786.1,1.81752307]
[1743884068519,1.4545,1786.2,1786.1,1.81753429]
[1743884068721,1.4545,1786.2,1786.1,3.34663429]
[1743884069615,3.99185,1786.3,1786.1,3.34663429]
[1743884069923,0.78408,1786.2,1786.1,1.072]
[1743884070216,5.40616,1786.3,1786.1,1.81754801]
[1743884070421,5.40616,1786.3,1786.2,0.74554404]
[1743884072430,3.2078,1786.3,1786.2,0.74554404]
[1743884073130,3.2078,1786.3,1786.2,0.74557183]
[1743884074133,3.2078,1786.3,1786.2,0.74545062]
[1743884074617,3.99184,1786.3,1786.2,0.74545062]
[1743884075928,3.99184,1786.3,1786.2,0.74529221]
[1743884076127,3.2078,1786.3,1786.2,0.74529221]
[1743884077224,0.78403,1786.4,1786.2,0.74529221]
[1743884077424,3.99183,1786.4,1786.3,1.81439221]
[1743884077826,3.99183,1786.4,1786.3,1.81425442]
[1743884079331,0.78403,1786.4,1786.3,1.81425442]
[1743884079531,3.99183,1786.4,1786.3,1.81425442]
[1743884079828,3.99183,1786.4,1786.3,1.81413893]
[1743884080333,3.2078,1786.4,1786.3,1.81413893]
[1743884080523,3.2078,1786.4,1786.3,2.89083893]
[1743884080723,4.6925,1786.4,1786.3,2.89083893]
[1743884081527,4.6925,1786.4,1786.3,2.89072451]
[1743884081828,4.6925,1786.4,1786.3,6.43372451]
[1743884083329,4.6925,1786.4,1786.3,6.43366305]
[1743884083530,4.6925,1786.4,1786.3,7.21770305]
[1743884086539,4.6925,1786.4,1786.3,6.43366305]
[1743884088037,5.47649,1786.4,1786.3,6.43366305]
[1743884088436,6.49729,1786.4,1786.3,5.36456305]
[1743884088636,6.49729,1786.4,1786.3,4.28786305]
[1743884090744,6.49729,1786.4,1786.3,4.28782324]
[1743884092148,5.7133,1786.4,1786.3,4.28782324]
[1743884092344,5.7133,1786.4,1786.3,6.13336324]
[1743884092544,6.49729,1786.4,1786.3,5.34932324]
[1743884092946,5.47649,1786.4,1786.3,5.34932324]
[1743884093249,5.47649,1786.4,1786.3,6.78712324]
[1743884093641,4.6925,1786.4,1786.3,7.57116324]
[1743884093842,5.47649,1786.4,1786.3,6.78712324]
[1743884095148,5.47649,1786.4,1786.3,5.34932324]
[1743884095338,6.49709,1786.4,1786.3,5.34932324]
[1743884096249,6.49709,1786.4,1786.3,5.34959723]
[1743884098151,6.49709,1786.4,1786.3,5.34969956]
[1743884099960,6.49709,1786.4,1786.3,5.34986827]
[1743884100858,4.6925,1786.4,1786.3,5.34986827]
[1743884101056,4.6925,1786.4,1786.3,6.76686827]
[1743884101861,5.47649,1786.4,1786.3,6.76686827]
[1743884102356,0.00841137,1786.5,1786.4,0.78399]
[1743884102660,4.6315,1786.8,1786.6,0.78389]
[1743884102854,4.6315,1786.8,1786.7,8.47422827]
[1743884103059,3.2078,1786.8,1786.7,8.47422827]
[1743884103461,5.41523,1787.0,1786.7,8.47419827]
[1743884103758,0.00841137,1786.9,1786.8,2.16236827]
[1743884103951,0.00841137,1786.9,1786.8,0.74536827]
[1743884104152,0.00841137,1786.9,1786.8,1.52918827]
[1743884104354,0.00841137,1786.9,1786.8,0.74536827]
[1743884104861,0.00841137,1786.9,1786.8,0.74428872]
[1743884105160,2.25688137,1786.9,1786.8,0.74428872]
[1743884106666,2.25688137,1786.9,1786.8,0.74372381]
[1743884107161,1.47311137,1786.9,1786.8,0.74372381]
[1743884108458,2.25689137,1786.9,1786.8,0.74332114]
[1743884109263,1.47311137,1786.9,1786.8,0.74332114]
[1743884110470,2.25688137,1786.9,1786.8,0.74307407]
[1743884112475,1.47311137,1786.9,1786.8,0.74307407]
[1743884112677,2.25688137,1786.9,1786.8,0.74307407]
[1743884112979,1.47311137,1786.9,1786.8,0.74307407]
[1743884113270,2.25688137,1786.9,1786.8,0.74307407]
[1743884113969,2.25688137,1786.9,1786.8,0.74280985]
[1743884117174,1.47311137,1786.9,1786.8,0.74280985]
[1743884117378,0.00841137,1786.9,1786.8,1.52662985]
[1743884118372,0.00841137,1786.9,1786.8,0.74280985]
[1743884118868,0.00841137,1786.9,1786.8,2.19780985]
[1743884119377,0.00841137,1786.9,1786.8,5.48162985]
[1743884119779,0.00841137,1786.9,1786.8,2.98162985]
[1743884120472,0.00841137,1786.9,1786.8,5.48162985]
[1743884122274,0.00841137,1786.9,1786.8,2.98162985]
[1743884122983,0.00841137,1786.9,1786.8,2.98142949]
[1743884128488,0.00841137,1786.9,1786.8,2.98210914]
[1743884133288,0.00841137,1786.9,1786.8,2.98292635]
[1743884133489,0.00841137,1786.9,1786.8,2.98292765]
[1743884140997,0.00841137,1786.9,1786.8,2.98249335]
[1743884141399,0.00841137,1786.9,1786.8,2.98237626]
[1743884142390,1.37e-06,1786.9,1786.8,2.98237626]
[1743884143189,1.37e-06,1786.9,1786.8,2.98229542]
[1743884146901,1.37e-06,1786.9,1786.8,2.98241481]
[1743884148701,1.37e-06,1786.9,1786.8,2.9826166]
[1743884151307,1.44670137,1786.9,1786.8,2.9826166]
[1743884151996,0.31351137,1786.9,1786.8,2.9826166]
[1743884152301,1.0152,1787.0,1786.9,0.78377]
[1743884152493,1.0152,1787.0,1786.9,7.21724523]
[1743884153896,1.0152,1787.0,1786.9,4.73564523]
[1743884155101,2.4633,1787.0,1786.9,4.73564523]
[1743884155804,2.4633,1787.0,1786.9,39.99764523]
[1743884156792,2.4633,1787.0,1786.9,41.44394523]
[1743884156993,1.4481,1787.0,1786.9,41.44394523]
[1743884158701,1.0207,1787.1,1787.0,0.78373]
[1743884159004,1.0207,1787.1,1787.0,7.58280523]
[1743884159198,0.9896,1787.4,1787.3,0.7836]
[1743884159396,0.9896,1787.4,1787.3,5.06767523]
[1743884159397,2.036,1787.4,1787.3,5.06767523]
[1743884159596,1.0464,1787.4,1787.3,5.06767523]
[1743884159797,1.0464,1787.4,1787.3,8.27601877]
[1743884160205,1.0464,1787.4,1787.3,9.75511877]
[1743884162005,1.4773,1787.7,1787.6,0.78347]
[1743884162206,2.4835,1787.7,1787.6,5.06808877]
[1743884164606,2.4835,1787.7,1787.6,5.06751522]
[1743884167703,2.4835,1787.7,1787.6,6.54191522]
[1743884168211,2.4835,1787.7,1787.6,6.54129708]
[1743884169910,2.4835,1787.7,1787.6,7.61309708]
[1743884171912,2.4835,1787.7,1787.6,7.61276361]
[1743884173811,2.4835,1787.7,1787.6,7.61257137]
[1743884175615,2.4835,1787.7,1787.6,7.61247161]
[1743884177418,2.4835,1787.7,1787.6,7.612429]
[1743884177817,2.4835,1787.7,1787.6,8.662229]
[1743884178515,3.2078,1788.1,1787.6,8.662229]
[1743884178516,3.2078,1788.1,1788.0,0.78329]
[1743884178817,1.5158,1788.0,1787.9,0.78331]
[1743884179017,3.5591,1788.0,1787.9,5.06507203]
[1743884179314,6.0591,1788.0,1787.9,4.28176203]
[1743884179520,6.84239,1788.0,1787.9,0.74276203]
[1743884180817,6.0591,1788.0,1787.9,1.52609203]
[1743884181020,6.0591,1788.0,1787.9,1.5262349]
[1743884182923,6.0591,1788.0,1787.9,0.74310318]
[1743884184318,6.84239,1788.0,1787.9,0.74310318]
[1743884184720,6.0591,1788.0,1787.6,36.03745]
[1743884185022,0.78338,1787.8,1787.7,0.74342126]
[1743884185230,3.99118,1787.8,1787.7,0.74342126]
[1743884185425,6.49118,1787.8,1787.7,0.74342126]
[1743884186529,6.49118,1787.8,1787.7,0.74371899]
[1743884188222,3.99118,1787.8,1787.7,0.74371899]
[1743884188422,3.99118,1787.8,1787.7,0.74396094]
[1743884190331,3.99118,1787.8,1787.7,0.74416829]
[1743884191123,3.99118,1787.8,1787.6,2.4936]
[1743884191331,0.78342,1787.7,1787.6,2.4936]
[1743884191633,0.78342,1787.7,1787.6,3.23781496]
[1743884192039,0.78342,1787.7,1787.6,3.23782048]
[1743884193640,3.2078,1787.8,1787.6,3.23782048]
[1743884193934,3.99118,1787.8,1787.7,2.18442048]
[1743884195237,3.99118,1787.8,1787.7,0.74422048]
[1743884195730,0.78342,1787.7,1787.6,0.9807]
[1743884195935,1.78022,1787.7,1787.6,3.13349782]
[1743884197225,1.78022,1787.7,1787.6,2.15279782]
[1743884197932,1.78022,1787.7,1787.6,0.74419782]
[1743884198537,0.78347,1787.6,1787.5,3.54741137]
[1743884198839,5.04677,1787.6,1787.5,4.29167166]
[1743884199139,5.52917,1787.6,1787.5,4.29167166]
[1743884199536,5.52917,1787.6,1787.5,5.72637166]
[1743884201236,5.52917,1787.6,1787.5,4.98211137]
[1743884201439,5.52917,1787.6,1787.5,5.72431631]
[1743884201640,5.52917,1787.6,1787.5,6.78071631]
[1743884203244,5.52917,1787.6,1787.5,6.7807049]
[1743884203443,5.52917,1787.6,1787.5,5.7243049]
[1743884203743,5.52917,1787.6,1787.5,0.7506049]
[1743884208544,5.52917,1787.6,1787.5,0.00841137]
[1743884208752,5.52917,1787.6,1787.5,0.75035771]
[1743884209251,5.52917,1787.6,1787.5,0.75043122]
[1743884210547,5.52917,1787.6,1787.5,0.75039082]
[1743884212253,5.52917,1787.6,1787.5,0.75036287]
[1743884214053,2.32137,1787.6,1787.5,0.00841137]
[1743884214354,2.32137,1787.6,1787.5,0.7503774]
[1743884214355,5.52917,1787.6,1787.5,0.7503774]
[1743884214948,0.78364,1787.2,1787.1,1.0709]
[1743884215149,0.78373,1787.0,1786.9,5.9606]
[1743884215353,0.78373,1787.0,1786.9,5.5968]
[1743884221563,3.99153,1787.0,1786.9,5.5968]
[1743884222362,0.78373,1787.0,1786.9,5.5968]
[1743884222556,3.99153,1787.0,1786.9,5.5968]
[1743884226858,3.99153,1787.0,1786.9,6.34011521]
[1743884227357,0.78373,1787.0,1786.9,6.34011521]
[1743884228064,0.78373,1787.0,1786.9,6.34024853]
[1743884229267,0.78373,1787.0,1786.9,7.76284853]
[1743884238375,3.2078,1787.6,1786.9,13.47064853]
[1743884238566,0.78363,1787.3,1787.1,0.78367]
[1743884238767,0.78363,1787.3,1787.2,7.89884853]
[1743884240979,0.78363,1787.3,1787.2,7.89997404]
[1743884242681,3.99137,1787.4,1787.2,7.89997404]
[1743884242882,3.99137,1787.4,1787.3,2.15513586]
[1743884244584,3.99137,1787.4,1787.3,2.15511006]
[1743884246885,3.2078,1787.4,1787.3,2.93871006]
[1743884247078,5.03436137,1787.7,1787.3,2.15511006]
[1743884247282,0.00841137,1787.7,1787.6,0.78347]
[1743884247585,3.99963137,1787.7,1787.6,4.28451006]
[1743884247785,3.99963137,1787.7,1787.6,5.71971006]
[1743884248285,4.91343137,1787.7,1787.6,5.71971006]
[1743884248685,4.91343137,1787.7,1787.6,4.28383091]
[1743884249182,5.87583137,1787.7,1787.6,4.28383091]
[1743884250087,5.87583137,1787.7,1787.6,4.28339486]
[1743884252584,5.87583137,1787.7,1787.6,5.80859486]
[1743884253588,5.87583137,1787.7,1787.6,5.0652]
[1743884253788,5.87583137,1787.7,1787.6,5.80820461]
[1743884253989,5.87583137,1787.7,1787.6,6.59167461]
[1743884254791,5.87583137,1787.7,1787.6,5.80820461]
[1743884255295,3.99963137,1787.7,1787.6,5.80820461]
[1743884258890,3.99963137,1787.7,1787.6,4.28300461]
[1743884259091,4.98583137,1787.7,1787.6,0.74300461]
[1743884259495,0.78355,1787.4,1787.3,6.8912]
[1743884259698,0.78355,1787.4,1787.3,7.63420588]
[1743884260198,2.21915,1787.4,1787.3,7.63420588]
[1743884262695,4.1491,1787.5,1787.3,8.41780588]
[1743884262696,3.99134,1787.5,1787.3,8.41780588]
[1743884262896,3.99134,1787.5,1787.4,2.28910588]
[1743884263199,0.78348,1787.6,1787.4,3.07298439]
[1743884263497,0.78348,1787.6,1787.5,3.24993439]
[1743884264098,0.78348,1787.6,1787.5,3.25016635]
[1743884264595,0.78348,1787.6,1787.5,3.25016871]
[1743884266499,0.78348,1787.6,1787.5,3.25054758]
[1743884271905,0.78348,1787.6,1787.5,3.25133184]
[1743884275506,0.78348,1787.6,1787.5,3.25166392]
[1743884275805,0.78348,1787.6,1787.5,3.25166296]
[1743884277409,0.78348,1787.6,1787.5,3.25188766]
[1743884280511,2.21408,1787.6,1787.5,3.25188766]
[1743884281009,0.78348,1787.6,1787.5,3.25188766]
[1743884286009,0.78348,1787.6,1787.5,3.25194928]
[1743884286212,0.78348,1787.6,1787.5,2.29144928]
[1743884286408,3.26148,1787.6,1787.5,0.74534928]
[1743884291813,2.27058,1787.6,1787.5,0.74534928]
[1743884292118,3.99966137,1787.7,1787.5,2.52802928]
[1743884292418,3.99966137,1787.7,1787.6,3.16054928]
[1743884292711,3.99966137,1787.7,1787.6,6.69954928]
[1743884292915,0.79186137,1787.7,1787.6,7.48301928]
[1743884293115,0.79186137,1787.7,1787.6,6.69954928]
[1743884296718,0.00841137,1787.7,1787.6,7.48301928]
[1743884296915,0.00841137,1787.7,1787.6,7.48314092]
[1743884297116,0.00841137,1787.7,1787.6,6.69967092]
[1743884298218,0.00841137,1787.7,1787.6,7.48314092]
[1743884298421,0.79183137,1787.7,1787.6,7.48314092]
[1743884298821,0.79183137,1787.7,1787.6,7.48305611]
[1743884299121,0.00841137,1787.7,1787.6,7.48305611]
[1743884300624,0.00841137,1787.7,1787.6,7.48297917]
[1743884300825,0.79183137,1787.7,1787.6,7.48297917]
[1743884302424,0.79183137,1787.7,1787.6,7.48294363]
[1743884302633,0.79183137,1787.7,1787.6,6.69947363]
[1743884302819,0.79183137,1787.7,1787.6,5.75457363]
[1743884303021,3.25403137,1787.7,1787.6,5.75457363]
[1743884303827,0.79183137,1787.7,1787.6,6.53804363]
[1743884304225,0.79183137,1787.7,1787.6,5.79277]
[1743884304427,0.79183137,1787.7,1787.6,6.53800991]
[1743884305431,0.00841137,1787.7,1787.6,6.53800991]
[1743884306133,0.00841137,1787.7,1787.6,6.53794746]
[1743884311627,0.00841137,1787.7,1787.6,6.53751662]
[1743884313437,0.00841137,1787.7,1787.6,6.53748127]
[1743884313937,0.00841137,1787.7,1787.6,6.53748086]
[1743884315637,0.00841137,1787.7,1787.6,0.74471086]
[1743884315834,0.00841137,1787.7,1787.6,5.06618086]
[1743884316034,1.41801137,1787.7,1787.6,5.06618086]
[1743884317241,1.41801137,1787.7,1787.6,5.06630399]
[1743884322043,1.41801137,1787.7,1787.6,4.28283399]
[1743884322735,1.41801137,1787.7,1787.6,4.28334954]
[1743884323234,1.41801137,1787.7,1787.6,6.59531457]
[1743884324537,2.20143137,1787.7,1787.6,5.81184457]
[1743884325130,1.41801137,1787.7,1787.6,6.59531457]
[1743884326942,0.00841137,1787.7,1787.6,6.59531457]
[1743884328146,0.00841137,1787.7,1787.6,6.5953242]
[1743884331852,0.00841137,1787.7,1787.6,6.59534569]
[1743884335455,0.00841137,1787.7,1787.6,5.84997]
[1743884335662,0.00841137,1787.7,1787.6,6.59539697]
[1743884337455,0.00841137,1787.7,1787.6,6.59540559]
[1743884339159,0.00841137,1787.7,1787.6,6.59527051]
[1743884344168,0.00841137,1787.7,1787.6,6.59485549]
[1743884345468,0.00841137,1787.7,1787.6,9.80265549]
[1743884345863,0.00841137,1787.7,1787.6,9.05777]
[1743884346069,0.00841137,1787.7,1787.6,9.80249521]
[1743884347263,0.00841137,1787.7,1787.6,6.59464451]
[1743884347467,0.00841137,1787.7,1787.6,9.80244451]
[1743884351478,0.00841137,1787.7,1787.6,9.80237973]
[1743884353172,0.00841137,1787.7,1787.6,9.80237664]
[1743884355174,0.00841137,1787.7,1787.6,9.80239632]
[1743884358676,1.37e-06,1787.7,1787.6,9.80239632]
[1743884360482,1.37e-06,1787.7,1787.6,9.80251934]
[1743884364192,1.37e-06,1787.7,1787.6,9.80266982]
[1743884364883,1.37e-06,1787.7,1787.6,9.80166982]
[1743884367889,1.37e-06,1787.7,1787.6,9.80218385]
[1743884368787,1.42790137,1787.7,1787.6,9.80218385]
[1743884369588,1.42790137,1787.7,1787.6,9.80222165]
[1743884371395,1.42790137,1787.7,1787.6,9.80223146]
[1743884373401,1.42790137,1787.7,1787.6,9.80224509]
[1743884374102,1.42790137,1787.7,1787.6,9.80225581]
[1743884375004,1.42790137,1787.7,1787.6,6.26525581]
[1743884375209,1.42790137,1787.7,1787.6,9.80226457]
[1743884378811,1.42790137,1787.7,1787.6,9.80229609]
[1743884379311,1.37e-06,1787.7,1787.6,9.80229609]
[1743884380605,1.37e-06,1787.7,1787.6,9.05677]
[1743884380803,1.37e-06,1787.7,1787.6,9.80234704]
[1743884381413,1.37e-06,1787.7,1787.6,6.59454704]
[1743884381707,1.37e-06,1787.7,1787.6,9.80234704]
[1743884382515,1.37e-06,1787.7,1787.6,9.80238688]
[1743884384313,1.37e-06,1787.7,1787.6,9.80238122]
[1743884384516,1.44810137,1787.7,1787.6,9.80238122]
[1743884388118,1.44810137,1787.7,1787.6,8.27388122]
[1743884388308,2.39430137,1787.7,1787.6,1.52908122]
[1743884388512,2.39430137,1787.7,1787.6,4.28261122]
[1743884388717,4.89430137,1787.7,1787.6,4.28261122]
[1743884390313,4.89430137,1787.7,1787.6,5.06608122]
[1743884392316,2.39430137,1787.7,1787.6,5.06608122]
[1743884393719,2.39430137,1787.7,1787.6,5.06522804]
[1743884397117,2.39430137,1787.7,1787.6,5.06502738]
[1743884397322,1.44810137,1787.7,1787.6,6.56942738]
[1743884398923,1.44810137,1787.7,1787.6,5.78595738]
[1743884399116,1.44810137,1787.7,1787.6,5.78588592]
[1743884400415,2.23152137,1787.7,1787.6,5.78588592]
[1743884400616,2.23152137,1787.7,1787.6,3.537]
[1743884400819,2.23152137,1787.7,1787.6,4.28146523]
[1743884401024,4.73152137,1787.7,1787.6,0.74446523]
[1743884401219,0.78347,1787.6,1787.5,35.253]
[1743884401424,6.35047,1787.6,1787.5,35.99751548]
[1743884402223,6.35047,1787.6,1787.5,0.74451548]
[1743884402425,0.78355,1787.5,1787.2,6.67711]
[1743884402721,2.3809,1787.4,1787.3,0.74404224]
[1743884402918,2.3809,1787.4,1787.3,1.52764224]
[1743884403224,3.16445,1787.4,1787.3,0.74404224]
[1743884403426,2.3809,1787.4,1787.3,0.74404224]
[1743884404321,2.3809,1787.4,1787.3,2.18894224]
[1743884404728,3.16445,1787.4,1787.3,2.18894224]
[1743884409434,3.16445,1787.4,1787.3,2.18830464]
[1743884409730,2.3809,1787.4,1787.3,2.18830464]
[1743884411227,2.3809,1787.4,1787.3,2.1882988]
[1743884412428,3.20780137,1787.7,1787.4,0.78355]
[1743884412633,3.20780137,1787.7,1787.5,1.5269088]
[1743884412931,3.20780137,1787.7,1787.6,2.27241699]
[1743884413940,3.20780137,1787.7,1787.6,3.05588699]
[1743884414735,3.20780137,1787.7,1787.6,3.05613408]
[1743884415437,3.20780137,1787.7,1787.6,2.27266408]
[1743884416136,3.20780137,1787.7,1787.6,3.05613408]
[1743884416331,3.20780137,1787.7,1787.6,2.27266408]
[1743884416540,3.20780137,1787.7,1787.6,1.529]
[1743884416736,3.20780137,1787.7,1787.6,2.2730123]
[1743884417437,3.20780137,1787.7,1787.6,3.0564823]
[1743884417946,3.20780137,1787.7,1787.6,2.2730123]
[1743884418448,3.20780137,1787.7,1787.6,3.05679216]
[1743884419041,3.99122137,1787.7,1787.6,2.27332216]
[1743884419436,3.20780137,1787.7,1787.6,3.05679216]
[1743884420246,3.20780137,1787.7,1787.6,3.05685283]
[1743884421455,1.37e-06,1787.7,1787.6,3.05685283]
[1743884422050,1.37e-06,1787.7,1787.6,3.05691152]
[1743884422751,0.78342137,1787.7,1787.6,2.27344152]
[1743884423649,1.37e-06,1787.7,1787.6,3.96871152]
[1743884424652,0.78342137,1787.7,1787.6,3.96871152]
[1743884424848,0.78342137,1787.7,1787.6,3.18524152]
[1743884428156,0.78342137,1787.7,1787.6,3.18542872]
[1743884431253,0.78342137,1787.7,1787.6,3.1855449]
[1743884433057,0.78342137,1787.7,1787.6,3.18557722]
[1743884435456,0.78342137,1787.7,1787.6,3.96904722]
[1743884435956,0.78342137,1787.7,1787.6,3.18557722]
[1743884438559,0.78342137,1787.7,1787.6,3.18592518]
[1743884439056,0.78342137,1787.7,1787.6,0.74512518]
[1743884439257,6.49122137,1787.7,1787.6,0.74512518]
[1743884439457,8.95552137,1787.7,1787.6,0.74512518]
[1743884439650,8.95552137,1787.7,1787.6,5.18e-06]
[1743884439851,0.78373,1787.1,1786.9,22.04634508]
[1743884440158,4.1995,1787.0,1786.9,26.36711508]
[1743884441461,5.7396,1787.0,1786.9,25.58334508]
[1743884441656,5.7396,1787.0,1786.9,3.537]
[1743884443159,6.52333,1787.0,1786.9,3.537]
[1743884443358,5.7396,1787.0,1786.9,3.537]
[1743884444263,6.52333,1787.0,1786.9,3.537]
[1743884445262,5.7396,1787.0,1786.9,3.537]
[1743884445764,6.52333,1787.0,1786.9,3.537]
[1743884446766,5.7396,1787.0,1786.9,3.537]
[1743884447862,2.5318,1787.0,1786.9,3.537]
[1743884448766,2.5318,1787.0,1786.9,4.32077]
[1743884449065,3.99147,1787.2,1786.9,4.32077]
[1743884449264,6.37587,1787.2,1786.9,4.32077]
[1743884449462,3.2078,1787.2,1786.9,4.32074]
[1743884449659,3.2078,1787.2,1787.0,0.907]
[1743884449864,3.2078,1787.2,1787.0,1.69071]
[1743884450064,3.2078,1787.2,1787.1,0.9292]
[1743884452070,4.6412,1787.2,1787.1,0.9292]
[1743884452563,1.4334,1787.2,1787.1,0.9292]
[1743884452769,4.6412,1787.2,1787.1,0.9292]
[1743884453271,5.42484,1787.2,1786.9,4.32074]
[1743884453566,3.11689,1787.1,1786.9,5.30244]
[1743884453768,3.11691,1787.1,1786.9,5.30246]
[1743884453965,1.4334,1787.0,1786.9,5.30246]
[1743884454166,1.4334,1787.0,1786.9,1.76546]
[1743884454367,1.4334,1787.0,1786.9,5.30346]
[1743884456676,1.4334,1787.0,1786.9,4.5197]
[1743884457063,1.68348,1787.1,1786.9,5.30347]
[1743884457365,0.8998,1787.1,1786.9,5.30347]
[1743884459071,0.8998,1787.1,1787.0,1.4079]
[1743884459271,0.78368,1787.1,1787.0,1.4079]
[1743884459573,3.99147,1787.2,1787.0,2.19161]
[1743884459771,3.99147,1787.2,1787.1,0.9252]
[1743884460071,3.99147,1787.2,1787.1,2.3331]
[1743884462369,0.78367,1787.2,1787.1,2.3331]
[1743884462677,0.78373,1787.0,1786.9,5.30344]
[1743884462866,0.78373,1787.0,1786.9,6.70504]
[1743884463674,2.22141,1787.1,1786.9,6.70504]
[1743884464070,2.22141,1787.1,1787.0,1.4016]
[1743884469176,3.14031,1787.1,1787.0,1.4016]
[1743884474480,2.22141,1787.1,1787.0,1.4016]
[1743884475878,0.78371,1787.1,1787.0,1.4016]
[1743884478483,2.22531,1787.1,1787.0,1.4016]
[1743884480985,3.2078,1787.2,1787.0,1.4016]
[1743884481288,0.78356,1787.4,1787.1,0.979]
[1743884481494,0.78356,1787.4,1787.2,6.0454]
[1743884481689,0.78356,1787.4,1787.3,1.514]
[1743884482583,3.99133,1787.5,1787.3,2.2976]
[1743884482783,3.99133,1787.5,1787.4,0.979]
[1743884483085,3.99133,1787.5,1787.4,2.5164]
[1743884486286,0.78353,1787.5,1787.4,2.5164]
[1743884486687,2.19669,1787.6,1787.4,2.5164]
[1743884486889,2.19669,1787.6,1787.5,2.3786]
[1743884487188,4.91185137,1787.7,1787.5,2.3786]
[1743884487381,3.20780137,1787.7,1787.6,1.4662]
[1743884489489,3.20780137,1787.7,1787.6,2.24967]
[1743884492086,1.37e-06,1787.7,1787.6,2.24967]
[1743884509308,1.37e-06,1787.7,1787.6,4.74967]
[1743884509915,1.37e-06,1787.7,1787.6,10.66767]
[1743884512321,1.37e-06,1787.7,1787.6,8.16767]
[1743884519318,1.37e-06,1787.7,1787.6,11.70267]
[1743884519621,1.37e-06,1787.7,1787.6,5.78467]
[1743884519819,1.45090137,1787.7,1787.6,5.78467]
[1743884521323,1.37e-06,1787.7,1787.6,5.78467]
[1743884523525,1.37e-06,1787.7,1787.6,8.99247]
[1743884531827,1.4593,1788.1,1788.0,0.78329]
[1743884532130,0.9583,1788.3,1788.2,0.7832]
[1743884534728,1.9206,1788.3,1788.2,0.7832]
[1743884536326,0.9583,1788.3,1788.2,0.7832]
[1743884536715,0.9583,1788.3,1788.2,3.1641]
[1743884538328,0.9583,1788.3,1788.2,0.7832]
[1743884538529,1.9165,1788.3,1788.2,0.7832]
[1743884542133,1.9165,1788.3,1788.2,4.3182]
[1743884547733,1.9165,1788.3,1788.2,4.3172]
[1743884550832,0.7832,1788.2,1788.1,35.25438739]
[1743884551134,2.3022,1788.2,1788.1,0.00838739]
[1743884551324,4.8022,1788.2,1788.1,0.00838739]
[1743884552432,4.019,1788.2,1788.1,0.79163739]
[1743884553631,4.8022,1788.2,1788.1,0.79163739]
[1743884553832,2.3022,1788.2,1788.1,0.00838739]
[1743884557535,2.3022,1788.2,1788.1,0.74952799]
[1743884559140,2.3022,1788.2,1788.1,0.74948441]
[1743884562144,2.3022,1788.2,1788.1,0.74932792]
[1743884563346,0.7832,1788.2,1788.1,1.70982792]
[1743884563538,0.7832,1788.2,1788.1,3.16862792]
[1743884565649,0.7832,1788.2,1788.1,3.16864946]
[1743884567447,0.7832,1788.2,1788.1,3.16874157]
[1743884568949,0.7832,1788.2,1788.1,0.74944157]
[1743884569149,2.2616,1788.2,1788.1,0.74944157]
[1743884569647,2.2616,1788.2,1788.1,2.15074157]
[1743884571150,2.2616,1788.2,1788.1,2.15090358]
[1743884572538,2.2616,1788.2,1788.1,0.74960358]